Cogmind - Beta 12 *** ADVENTURER MODE // 2023.09.12 @ 00:09:47 Player: Damos Result: Destroyed by G-50 Soldier with Heavy Laser Performance ------------- Evolutions (4) 2000 Regions Visited (15) 3000 Robots Destroyed (320) 1600 Value Destroyed (13437) 13437 Prototype IDs (21) 420 Alien Tech Used (0) 0 Bonus (6149) 6149 TOTAL SCORE: 26606 Bonus ------- High Alert Combat Kills 2116 Follower Combat Kills 1879 Entered Garrisons 600 Used RIF Installer 2000 Friendly Fire -446 Cogmind --------- Core Integrity 0/850 Matter 481/600 Energy 700/700 System Corruption 5% Temperature Cool (9) Movement Walking (120) Location -6/Cetus Parts ------- > --- POWER (1) -------- Quantum Reactor > --- PROPULSION (3) --- Flexi-carbon Leg Flexi-carbon Leg > --- UTILITY (8) ------ Advanced Heat Sink Advanced Heat Sink Energy Well Improved Matter Compressor Targeting Computer > --- WEAPON (3) ------- Heavy Laser Heavy Laser > --- INVENTORY (5) ---- System Restoration Module Peak State ------------ > --- POWER ------------ Neutrino Core > --- PROPULSION ------- Carbon-fiber Leg Flexi-carbon Leg Flexi-carbon Leg > --- UTILITY ---------- Advanced Heat Sink Energy Well Improved Matter Compressor Machine Analyzer Enhanced Optical Array Armor Integrity Analyzer Phase Shifter Centrium Medium Armor Plating > --- WEAPON ----------- Heavy Laser Plasma Rifle Bore Cannon > --- INVENTORY -------- Quantum Reactor Light Treads Carbon-fiber Leg System Restoration Module Remote Datajack [Rating: 78] Favorites ----------- Power Light Nuclear Core Engine Improved Deuterium Engine Power Core Light Nuclear Core Reactor Quantum Reactor Propulsion Cesium-ion Thruster Treads Light Treads Leg Flexi-carbon Leg Wheel Compact Wheel Hover Unit Airjet Flight Unit Cesium-ion Thruster Utility Improved Signal Interpreter Device Improved Sensor Array Storage Energy Well Processor Improved Signal Interpreter Hackware System Shield Protection Improved Light Armor Plating Weapon Minigun Energy Gun Gatling Laser Energy Cannon Proton Cannon Ballistic Gun Minigun Ballistic Cannon Bore Cannon Special Weapon Remote Datajack Slashing Weapon Greatsword Special Melee Weapon Improved Datajack Build | -11 -10 -10 -9 -9 -8 -8 -7 -7 -7 -7 -7 -7 -6 -6 -6 ------- Run | Jun Mat Min Mat Min Mat Gar Fac Was Fac Gar Fac Gar Fac Ext Cet Slots Evolved 8 | . . . 2 . 2 . 2 . . . . . 2 . . Power . | . . . . . . . . . . . . . . . . Propulsion 1 | . . . . . 1 . . . . . . . . . . Utility 6 | . . . 2 . 1 . 2 . . . . . 1 . . Weapon 1 | . . . . . . . . . . . . . 1 . . Parts Attached 386 | 6 13 4 21 3 26 35 10 1 37 53 21 51 25 48 32 Power 46 | 1 . 1 2 . 2 3 3 . 3 4 3 7 4 9 4 Engine 20 | 1 . . 1 . 2 2 2 . 3 1 . 3 1 4 . Core 23 | . . 1 1 . . 1 1 . . 3 3 3 3 5 2 Reactor 3 | . . . . . . . . . . . . 1 . . 2 Propulsion 94 | 2 7 3 8 1 4 7 1 . 14 11 5 11 5 9 6 Treads 7 | . . . . . . . . . . . . . . 7 . Leg 6 | . . . . . . . . . . . . . . . 6 Wheel 20 | 2 7 3 7 1 . . . . . . . . . . . Hover 1 | . . . . . . . . . . . . . . 1 . Flight 60 | . . . 1 . 4 7 1 . 14 11 5 11 5 1 . Utility 109 | 1 2 . 5 2 8 7 3 . 13 10 10 16 11 15 6 Device 62 | . . . 1 1 6 4 2 . 9 8 7 9 5 6 4 Storage 7 | 1 . . 2 . . . . . 2 . . . 1 1 . Processor 14 | . 1 . 1 . 2 . 1 . 1 1 2 . 2 2 1 Hackware 5 | . . . . . . 3 . . 1 . 1 . . . . Protection 21 | . 1 . 1 1 . . . . . 1 . 7 3 6 1 Artifact . | . . . . . . . . . . . . . . . . Weapon 137 | 2 4 . 6 . 12 18 3 1 7 28 3 17 5 15 16 Energy Gun 50 | 1 1 . . . 6 8 1 . 2 5 2 4 2 8 10 Energy Cannon 1 | . . . . . . . . . . . . . . 1 . Ballistic Gun 44 | 1 . . 4 . 6 7 1 1 3 14 . 7 . . . Ballistic Cannon 18 | . 3 . 2 . . . . . 2 . 1 1 . 3 6 Launcher . | . . . . . . . . . . . . . . . . Special Weapon 16 | . . . . . . . . . . 9 . 2 2 3 . Impact Weapon . | . . . . . . . . . . . . . . . . Slashing Weapon 4 | . . . . . . . . . . . . 3 1 . . Piercing Weapon . | . . . . . . . . . . . . . . . . Special Melee Weapon 4 | . . . . . . 3 1 . . . . . . . . Unidentified Prototypes 10 | . . . . 2 2 . 1 . 1 . . 1 . 1 2 Parts Lost 77 | . . . 8 2 3 6 1 . 1 9 3 9 6 10 19 Power 10 | . . . 2 . 1 1 . . . 1 1 2 . 1 1 Propulsion 23 | . . . 2 1 . 3 1 . . 2 1 2 2 4 5 Utility 24 | . . . . 1 1 1 . . 1 4 1 4 2 3 6 Weapon 20 | . . . 4 . 1 1 . . . 2 . 1 2 2 7 Highest Loss Streak 12 | . . . 3 1 1 2 1 . 1 4 2 2 2 6 12 To Critical Strikes . | . . . . . . . . . . . . . . . . Average Slot Usage (%) 96 | . 98 100 99 99 92 93 93 100 98 94 99 94 91 96 96 Engine 4 | . 14 2 5 11 8 8 7 7 6 1 . 3 . 4 . Core 3 | . . 11 5 . . . . . . 5 6 3 6 1 5 Treads 3 | . . . . . . . . . . . . . . 16 13 Wheel 4 | . 28 28 21 21 . . . . . . . . . . . Flight 14 | . . . . . 26 26 23 23 22 22 22 22 19 2 . Device 17 | . . . 5 8 18 20 23 30 23 24 27 15 13 16 7 Storage 3 | . 2 . 10 11 6 . . . . . . . 1 7 13 Processor 18 | . 13 14 17 22 18 18 15 15 15 21 16 20 20 19 23 Hackware 2 | . . . . . . 3 7 7 13 2 2 2 . . . Protection 6 | . 11 14 10 2 . . . . . . 5 13 15 6 5 Energy Gun 4 | . 2 . . . 4 5 . 1 1 5 7 3 . 6 6 Ballistic Gun 5 | . 2 . 13 22 7 9 13 13 9 7 1 2 . . . Ballistic Cannon 5 | . 22 28 8 . . . . . 2 . 6 1 . 10 11 Naked Turns . | . . . . . . . . . . . . . . . . Heaviest Build 64 | 12 12 12 21 24 24 19 15 15 22 20 19 23 26 59 64 Greatest Support 72 | 20 32 32 32 32 21 21 19 19 25 25 25 24 26 72 60 Greatest Overweight (x) 13 | . 1 . 1 1 1 1 . . 1 . . 1 1 1 13 Average Overweight (x) . | . . . . . . . . . . . . . . . . Largest Inventory Capacity 25 | 8 8 5 8 8 8 5 5 5 25 5 5 5 5 5 5 Average Capacity 5 | 6 5 5 7 8 7 5 5 5 5 5 5 5 5 5 5 Most Carried 8 | 1 5 5 8 8 8 5 5 5 5 5 5 5 5 5 5 Average Carried 5 | . 3 4 6 7 6 4 4 4 4 4 4 4 4 4 4 Final Capacity 8 | 8 5 5 8 8 5 5 5 5 5 5 5 5 5 5 5 Final Carried 8 | 1 5 5 8 8 5 5 5 5 5 5 5 5 4 5 1 Class Distribution -------------------- 37% | Scavenger-Sprinter 17% | Mutant 15% | Hacker-Sprinter 10% | Scavenger-Mutant 6% | Scavenger-Gunner 5% | Sprinter 3% | Scavenger-Skirmisher Dominant Class ---------------- Mutant | -10/Materials Scavenger-Mutant | -10/Mines Mutant | -9/Materials Mutant | -9/Mines Sprinter | -8/Materials Scavenger-Sprinter | -8/Garrison Scavenger-Sprinter | -7/Factory Scavenger-Sprinter | -7/Waste Hacker-Sprinter | -7/Factory Scavenger-Sprinter | -7/Garrison Scavenger-Sprinter | -7/Factory Scavenger-Sprinter | -7/Garrison Scavenger-Sprinter | -6/Factory Scavenger-Mutant | -6/Extension Scavenger-Gunner | -6/Cetus Resources | -11 -10 -10 -9 -9 -8 -8 -7 -7 -7 -7 -7 -7 -6 -6 -6 ----------- Run | Jun Mat Min Mat Min Mat Gar Fac Was Fac Gar Fac Gar Fac Ext Cet Matter Collected 9051 | 221 232 183 1135 163 524 570 . 201 836 1108 215 1214 161 1068 1220 Remotely . | . . . . . . . . . . . . . . . . Salvage Created 13970 | . 266 50 1945 331 1103 1161 . 242 893 1427 523 2411 657 1312 1649 Parts 679 | . 26 5 123 21 58 65 . . 53 62 32 95 35 42 62 Haulers Intercepted . | . . . . . . . . . . . . . . . . Recyclers Shooed 2 | . 1 . . 1 . . . . . . . . . . . Parts Field Recycled . | . . . . . . . . . . . . . . . . Retrieved Matter . | . . . . . . . . . . . . . . . . Parts Self-Destructed . | . . . . . . . . . . . . . . . . Prevented . | . . . . . . . . . . . . . . . . Kills | -11 -10 -10 -9 -9 -8 -8 -7 -7 -7 -7 -7 -7 -6 -6 -6 ------- Run | Jun Mat Min Mat Min Mat Gar Fac Was Fac Gar Fac Gar Fac Ext Cet Combat Hostiles Destroyed 277 | . 10 3 51 7 18 29 . 1 19 25 10 41 12 18 33 Melee 17 | . . . . . . . . . . . . 4 12 . 1 Guns 160 | . 3 . 15 7 18 25 . 1 16 25 4 24 . 10 12 Cannons 93 | . 7 3 36 . . . . . 3 . 6 12 . 6 20 AOE 5 | . . . . . . 4 . . . . . . . 1 . Classes Destroyed 17 | . 4 1 6 . . 1 . 1 3 . . . . . 1 Worker 6 | . . . 3 . . . . . 1 . 2 . . . . Builder 2 | . . . . . . . . . 1 . . . . 1 . Recycler 6 | . 1 . 1 1 3 . . . . . . . . . . Carrier 1 | . . . . . . . . . . . . . . . 1 Operator 6 | . . . 2 . 1 . . . . . 1 . 1 1 . Watcher 26 | . 3 . 5 . 3 1 . . 6 . 5 . 1 1 1 Swarmer 84 | . 6 . 8 3 4 13 . . 6 13 2 18 3 1 7 Cutter 2 | . . . . . . . . . 2 . . . . . . Grunt 105 | . 4 2 29 3 6 4 . . 4 9 1 9 5 12 17 Brawler 9 | . . . 1 1 . 3 . . . . . 3 . . 1 Duelist 9 | . . . 1 . . 3 . . . . . 2 . . 3 Protector 2 | . . . 2 . . . . . . . . . . . . Sentry 42 | . . . 10 . 8 5 . . 3 1 2 5 3 5 . Hunter 4 | . . . . . . 1 . . . 1 . 1 . . 1 Programmer 14 | . . . . . . . . . 4 1 5 3 1 . . Compactor 1 | . . . . . . . . 1 . . . . . . . Cetus Guard 4 | . . . . . . . . . . . . . . . 4 Assembled 1 | . . 1 . . . . . . . . . . . . . Savage 1 | . . . . . . . . . . . . . . 1 . Butcher 2 | . . . . . . . . . . . . . . 2 . Best Kill Streak 13 | . 4 2 13 4 5 11 . 1 6 4 2 10 2 3 5 Combat Bots Only 11 | . 3 2 10 3 5 11 . 1 4 4 2 10 2 3 5 Max Kills in Single Turn 3 | . 1 1 2 1 2 3 . 1 2 2 1 1 1 1 2 Gunslinging 1 | . . . . . . 1 . . . 1 . . . . . Exploded 2 | . . . . . . 2 . . . . . . . 1 . Melee 1 | . . . . . . . . . . . . 1 1 . 1 Uniques/NPCs Destroyed . | . . . . . . . . . . . . . . . . Combat | -11 -10 -10 -9 -9 -8 -8 -7 -7 -7 -7 -7 -7 -6 -6 -6 -------- Run | Jun Mat Min Mat Min Mat Gar Fac Was Fac Gar Fac Gar Fac Ext Cet Damage Taken 11836 | . 203 203 1267 90 439 449 112 37 865 847 458 1634 809 1198 3225 Core 1975 | . 12 54 212 9 117 68 24 . 109 156 89 272 74 208 571 Absorbed by Shields 159 | . . . . . . 66 . . . . . 85 . 8 . Redirected to Shielding 82 | . 1 10 35 . . . . . . . . 4 14 18 . Regen/Repaired (Parts) 444 | . . . 66 . 22 . . 28 328 . . . . . . Core Remaining (%) 58 | 100 . 73 . 44 . 66 . . . . . 7 . . . Volleys Fired 947 | . 29 9 120 16 66 61 3 11 74 154 36 154 3 127 84 Largest 3 | . 2 2 2 2 2 2 2 2 2 2 2 2 1 3 3 Hottest 243 | . 70 70 70 50 105 130 50 80 108 135 119 126 85 243 224 Shots Fired 1721 | . 58 18 240 32 100 105 6 22 149 240 72 286 3 179 211 Gun 1164 | . 26 . 87 32 100 105 6 22 124 215 44 230 2 87 84 Cannon 490 | . 32 18 153 . . . . . 25 . 28 45 . 62 127 Launcher . | . . . . . . . . . . . . . . . . Special 67 | . . . . . . . . . . 25 . 11 1 30 . Kinetic 1060 | . 45 18 240 32 71 49 6 20 126 100 36 133 . 57 127 Thermal 498 | . 13 . . . 29 20 . . 13 72 36 142 2 87 84 Explosive . | . . . . . . . . . . . . . . . . Electromagnetic 96 | . . . . . . 36 . 2 10 43 . . . 5 . Robot Hit Streak 40 | . 11 7 40 28 28 25 2 19 21 31 25 22 18 37 16 Robot Miss Streak 6 | . 1 1 3 3 2 1 1 1 3 3 4 2 . 6 4 Penetration Max 1 | . . . . . . . . . 1 1 . . . 1 1 Secondary Targets 15 | . 1 . 1 . . 4 . . 1 5 . 3 . . . Max Gunslinging Chain 1 | . 1 . 1 . . 1 . . 1 1 . 1 . . . Shots Hit Robots 1277 | . 44 13 178 23 88 70 6 20 114 173 62 200 37 114 135 Core Hits 607 | . 18 5 79 10 48 55 1 3 49 85 39 92 14 48 61 Critical Kills 29 | . . . . . . . . . 1 . . . . 8 20 Critical Parts Destroyed 40 | . . . . . 1 . . . . 1 . 1 . 8 29 Critical Strikes 112 | . 2 . 9 . 1 . . 1 2 2 1 12 6 24 52 Burn 19 | . . . . . . . . . . 1 1 6 1 8 2 Destroy 71 | . . . . . 1 . . 1 1 1 . 1 . 16 50 Blast 14 | . 2 . 9 . . . . . 1 . . 2 . . . Sever 8 | . . . . . . . . . . . . 3 5 . . Melee Attacks 77 | . . . . . . 2 3 . . . . 33 39 . . Impact . | . . . . . . . . . . . . . . . . Slashing 72 | . . . . . . . . . . . . 33 39 . . Piercing . | . . . . . . . . . . . . . . . . Sneak Attacks 9 | . . . . . . 1 3 . . . . 3 2 . . Combat Hostiles 5 | . . . . . . . . . . . . 3 2 . . Follow-up Attacks . | . . . . . . . . . . . . . . . . Damage Inflicted 27655 | . 604 224 3185 418 1731 1503 53 298 2262 2755 1428 5727 2059 2051 3357 Guns 15771 | . 190 . 1201 418 1731 1287 53 298 1745 2512 915 2300 44 1384 1693 Cannons 6499 | . 409 224 1982 . . . . . 517 . 513 566 . 659 1629 Explosions 459 | . . . . . . 216 . . . 243 . . . . . Melee 4876 | . . . . . . . . . . . . 2861 2015 . . Ramming 50 | . 5 . 2 . . . . . . . . . . 8 35 Kinetic 13123 | . 500 224 3183 418 1028 321 53 297 1923 1106 641 1238 . 562 1629 Thermal 8374 | . 99 . . . 703 562 . . 255 1219 787 1628 44 1384 1693 Explosive . | . . . . . . . . . . . . . . . . Electromagnetic 1232 | . . . . . . 620 . 1 84 430 . . . 97 . Impact . | . . . . . . . . . . . . . . . . Slashing 4876 | . . . . . . . . . . . . 2861 2015 . . Piercing . | . . . . . . . . . . . . . . . . Highest Corruption 5 | . . . . 1 . 1 1 1 3 1 1 1 3 3 5 Average Corruption 1 | . . . . 1 . 1 1 1 1 1 1 1 1 2 5 Corruption Purged 10 | . . . . . . . . . 3 1 1 1 1 3 . Corruption Blocked . | . . . . . . . . . . . . . . . . Effects 50 | . . . . 2 . 11 2 1 25 . 4 1 2 1 1 Message Errors 11 | . . . . 1 . 1 1 . 8 . . . . . . Matter Fused 11 | . . . . . . 4 . . 3 . 1 . 1 1 1 Heat Flow Errors 7 | . . . . . . 2 1 . 3 . 1 . . . . Energy Discharges 7 | . . . . . . 2 . . 4 . . . 1 . . Parts Fused 2 | . . . . . . . . . 2 . . . . . . Data Loss (minor) 5 | . . . . . . . . 1 2 . 1 1 . . . Data Loss (major) 2 | . . . . 1 . . . . . . 1 . . . . Misfires 3 | . . . . . . 1 . . 2 . . . . . . Weapon Failures 2 | . . . . . . 1 . . 1 . . . . . . Overload Shots . | . . . . . . . . . . . . . . . . Overflow Damage 320 | . 16 . 14 . . . . . 27 . . 129 130 3 1 Projectiles 58 | . 16 . 14 . . . . . 27 . . . . . 1 Explosions . | . . . . . . . . . . . . . . . . Melee 262 | . . . . . . . . . . . . 129 130 3 . Knockbacks 52 | . 5 4 14 . . . . . 5 . 5 3 . 3 13 Impact . | . . . . . . . . . . . . . . . . Kinetic 48 | . 5 4 13 . . . . . 5 . 5 3 . 3 10 Secondary 4 | . . . 1 . . . . . . . . . . . 3 Self-Inflicted Damage 39 | . 2 . 1 . . 36 . . . . . . . . . Shots 1 | . . . . . . 1 . . . . . . . . . Rammed 5 | . 2 . 1 . . . . . . . . . . 2 . Targets Rammed 15 | . 2 . 1 . . . . . . . . . . 2 10 Kicked 9 | . . . . . . . . . . . . . . . 9 Crushed 1 | . . . . . . . . . . . . . . . 1 Highest Temperature 575 | . 60 57 41 18 48 214 139 8 345 322 164 106 72 222 575 Average Temperature 57 | . 20 30 14 5 11 27 80 4 58 58 44 36 37 65 129 Received Heat Transfer 3948 | . 33 30 699 18 261 108 63 . 147 300 63 417 183 501 1125 Effects 12 | . . . . . . . . . 1 . . . . . 11 Shutdowns 2 | . . . . . . . . . . . . . . . 2 Energy Bleed 2 | . . . . . . . . . 1 . . . . . 1 Interference 1 | . . . . . . . . . . . . . . . 1 Matter Decay 2 | . . . . . . . . . . . . . . . 2 Damage (major) 4 | . . . . . . . . . . . . . . . 4 Damage (core) 1 | . . . . . . . . . . . . . . . 1 Siege Activations . | . . . . . . . . . . . . . . . . Robots Corrupted 2 | . . . . . . . . . . 2 . . . . . Combat Hostiles . | . . . . . . . . . . . . . . . . Parts Fried 11 | . . . . . . . . . . 8 . . . 3 . Impact Corruptions 1 | . . . . . . . . . . . . . . 1 . Robots Melted 2 | . . . . . . . . . . . . 1 . 1 . Combat Hostiles 2 | . . . . . . . . . . . . 1 . 1 . Parts Melted 26 | . . . . . 2 1 . . 1 2 4 5 . 6 5 Heat Transferred 17712 | . 225 . . . 1575 1000 . . 550 2519 1644 3866 200 3300 2833 Parts Sabotaged . | . . . . . . . . . . . . . . . . Parts Stolen . | . . . . . . . . . . . . . . . . Parts Stripped . | . . . . . . . . . . . . . . . . Power Chain Reactions 6 | . . . . . . 4 . . . 2 . . . . . Missiles Intercepted . | . . . . . . . . . . . . . . . . Alert | -11 -10 -10 -9 -9 -8 -8 -7 -7 -7 -7 -7 -7 -6 -6 -6 ------- Run | Jun Mat Min Mat Min Mat Gar Fac Was Fac Gar Fac Gar Fac Ext Cet Peak Influence 1544 | . 261 50 857 378 635 1424 722 236 282 1204 736 1544 1246 809 504 Initial 702 | . . . . 196 4 200 647 189 85 68 547 40 702 454 . Average 448 | . 104 8 588 231 354 940 631 165 116 743 247 891 964 391 240 Maximum Alert Level 4 | . 1 . 3 1 2 4 3 1 1 4 3 4 4 3 2 Low Security (%) 37 | 100 94 100 7 45 16 . . 81 86 8 61 8 . 26 48 Level 1 18 | . 5 . 6 54 52 16 . 18 13 13 12 15 . 24 37 Level 2 20 | . . . 51 . 30 10 94 . . 30 21 8 . 36 13 Level 3 14 | . . . 34 . . 30 5 . . 22 4 22 86 12 . Level 4 9 | . . . . . . 41 . . . 24 . 45 13 . . Level 5 . | . . . . . . . . . . . . . . . . High Security . | . . . . . . . . . . . . . . . . Max Security . | . . . . . . . . . . . . . . . . Sterilizations 1 | . . . 1 . . . . . . . . . . . . Squads Dispatched 50 | . 1 . 8 1 3 . 2 . 9 . 9 . 11 4 2 Investigation 26 | . 1 . 4 1 2 . 2 . 3 . 4 . 4 3 2 Extermination 8 | . . . . . . . . . 3 . 5 . . . . Reinforcement 8 | . . . 2 . . . . . 3 . . . 2 1 . Assault 4 | . . . 2 . . . . . . . . . 2 . . Garrison 4 | . . . . . 1 . . . . . . . 3 . . Intercept . | . . . . . . . . . . . . . . . . Searches Triggered . | . . . . . . . . . . . . . . . . Construction Impeded . | . . . . . . . . . . . . . . . . Haulers Reinforced . | . . . . . . . . . . . . . . . . Active Scanning Responses . | . . . . . . . . . . . . . . . . Cargo Convoy Interrupts 1 | . . . . . . . . . 1 . . . . . . Stealth | -11 -10 -10 -9 -9 -8 -8 -7 -7 -7 -7 -7 -7 -6 -6 -6 --------- Run | Jun Mat Min Mat Min Mat Gar Fac Was Fac Gar Fac Gar Fac Ext Cet Distress Signals 11 | . 1 . 1 . 1 1 . . 2 . 1 . 1 3 . Communications Jammed 5 | . . . . . . . . . 1 . 4 . . . . Distress Signals 4 | . . . . . . . . . . . 4 . . . . Times Spotted 490 | . 17 13 60 8 35 37 10 4 44 35 23 41 59 61 43 Peak Tracking Total 11 | . 4 11 7 3 7 6 5 1 7 6 3 5 11 10 6 Tactical Retreats 55 | . 2 . 2 1 5 . 2 . 8 2 2 3 11 8 9 Traps | -11 -10 -10 -9 -9 -8 -8 -7 -7 -7 -7 -7 -7 -6 -6 -6 ------- Run | Jun Mat Min Mat Min Mat Gar Fac Was Fac Gar Fac Gar Fac Ext Cet Traps Triggered 52 | . 1 . 3 . 1 10 1 . 7 10 6 10 1 2 . Indirectly . | . . . . . . . . . . . . . . . . Trap Hack Attempts . | . . . . . . . . . . . . . . . . Triggered . | . . . . . . . . . . . . . . . . Disarmed . | . . . . . . . . . . . . . . . . Reprogrammed . | . . . . . . . . . . . . . . . . Reused . | . . . . . . . . . . . . . . . . Traps Extracted . | . . . . . . . . . . . . . . . . Installed . | . . . . . . . . . . . . . . . . Triggered 1 | . . . . . . . . . . . . . . 1 . Machines | -11 -10 -10 -9 -9 -8 -8 -7 -7 -7 -7 -7 -7 -6 -6 -6 ---------- Run | Jun Mat Min Mat Min Mat Gar Fac Was Fac Gar Fac Gar Fac Ext Cet Machines Disabled 30 | . . . 4 . . 8 . . . 5 . . 1 6 6 Max in Single Turn 2 | . . . 1 . . 2 . . . 1 . . . 1 1 Garrison Relay 8 | . . . . . . 4 . . . 4 . . . . . Phase Generator 1 | . . . . . . 1 . . . . . . . . . Energy Cycler 2 | . . . . . . . . . . . . . . 2 . Machines Repaired . | . . . . . . . . . . . . . . . . Machines Sabotaged . | . . . . . . . . . . . . . . . . Overloaded Fab Kills . | . . . . . . . . . . . . . . . . Hacking | -11 -10 -10 -9 -9 -8 -8 -7 -7 -7 -7 -7 -7 -6 -6 -6 --------- Run | Jun Mat Min Mat Min Mat Gar Fac Was Fac Gar Fac Gar Fac Ext Cet Machines Accessed 114 | . 8 2 12 2 14 4 3 . 23 2 23 3 11 5 2 Terminals 88 | . 7 2 10 . 12 4 3 . 13 2 17 3 8 5 2 Fabricators 6 | . . . . . . . . . 3 . 2 . 1 . . Repair Stations 10 | . 1 . 2 . 1 . . . 4 . 2 . . . . Recycling Units 1 | . . . . . . . . . 1 . . . . . . Scanalyzers 4 | . . . . . . . . . 1 . 1 . 2 . . Garrison Access 3 | . . . . . 1 . . . 1 . 1 . . . . Total Hacks 331 | . 33 4 39 2 35 9 8 . 68 5 60 11 29 20 8 Successful 158 | . 20 2 18 2 14 2 1 . 43 2 26 3 14 8 3 Failed 172 | . 13 2 21 . 21 7 7 . 24 3 34 8 15 12 5 Catastrophic 37 | . 3 . 3 . 6 3 1 . 5 . 5 2 7 . 2 Database Lockouts 1 | . . . . . . . . . 1 . . . . . . Manual 150 | . 26 4 22 1 25 . 4 . 27 2 25 . 12 2 . Terminals 250 | . 27 4 32 . 32 9 8 . 33 5 44 11 17 20 8 Fabricators 13 | . . . . . . . . . 6 . 4 . 3 . . Repair Stations 40 | . 6 . 7 . 2 . . . 21 . 4 . . . . Recycling Units 1 | . . . . . . . . . 1 . . . . . . Scanalyzers 21 | . . . . . . . . . 6 . 6 . 9 . . Garrison Access 4 | . . . . . 1 . . . 1 . 2 . . . . Terminal Hacks 92 | . 18 2 13 2 10 2 1 . 15 2 9 3 4 8 3 Record 8 | . 1 . . . . . . . . . 1 . . 3 3 Part Schematic 19 | . 7 2 2 . 1 . . . 5 . 2 . . . . Robot Schematic 1 | . . . . . . . . . 1 . . . . . . Robot Analysis 6 | . 1 . 4 . . . . . . . 1 . . . . Prototype ID Bank 7 | . 4 . 1 . 2 . . . . . . . . . . Open Door 6 | . . . . 2 . 1 . . . . . 1 1 1 . Open DSF 5 | . . . . . . . . . 2 . 2 . 1 . . Level Access Points 1 | . . . . . . . . . . . 1 . . . . Emergency Access Points 1 | . . . . . . . . . . . . 1 . . . Repair Station Index 1 | . . . . . . . . . . . . . . 1 . Scanalyzer Index 1 | . . . . . . . . . . . . . . 1 . Alert Level 11 | . 2 . 2 . 2 . . . 3 . 2 . . . . Unreport Threat 7 | . 1 . 1 . 1 . 1 . . . . . 2 1 . Locate Traps 1 | . 1 . . . . . . . . . . . . . . Dispatch Records 2 | . . . . . 1 . . . . . . . . 1 . Surveillance Status 1 | . . . . . 1 . . . . . . . . . . Patrol Status 1 | . . . . . . . . . 1 . . . . . . Transport Status 1 | . . . . . . . . . 1 . . . . . . Investigation Status 1 | . . . . . . . . . 1 . . . . . . Reinforcement Status 1 | . 1 . . . . . . . . . . . . . . Garrison Status 1 | . . . . . 1 . . . . . . . . . . Coupling Status 1 | . . . . . 1 . . . . . . . . . . Recall Investigation 1 | . . . 1 . . . . . . . . . . . . Recall Reinforcements 1 | . . . 1 . . . . . . . . . . . . Hauler Manifests 1 | . . . . . . . . . 1 . . . . . . Registered Components 1 | . . . 1 . . . . . . . . . . . . Zone Layout 1 | . . . . . . . . . . 1 . . . . . Patrol Navigation 2 | . . . . . . . . . . 1 . 1 . . . Security Stations 1 | . . . . . . 1 . . . . . . . . . Fabricator Hacks 8 | . . . . . . . . . 4 . 3 . 1 . . Load Schematic 5 | . . . . . . . . . 2 . 2 . 1 . . Build 3 | . . . . . . . . . 2 . 1 . . . . Repair Station Hacks 30 | . 2 . 5 . 2 . . . 19 . 2 . . . . Scan Component 18 | . 2 . 3 . 1 . . . 10 . 2 . . . . Repair 12 | . . . 2 . 1 . . . 9 . . . . . . Recycling Unit Hacks 1 | . . . . . . . . . 1 . . . . . . Report Inventory 1 | . . . . . . . . . 1 . . . . . . Scanalyzer 17 | . . . . . . . . . 3 . 6 . 8 . . Insert Component 9 | . . . . . . . . . 2 . 3 . 4 . . Analyze 8 | . . . . . . . . . 1 . 3 . 4 . . Garrison Access Hacks 4 | . . . . . 1 . . . 1 . 2 . . . . Unlock Access 3 | . . . . . 1 . . . 1 . 1 . . . . Coupler Status 1 | . . . . . . . . . . . 1 . . . . Unauthorized Hacks 6 | . . . . . 1 . . . . . 4 . 1 . . Terminals 6 | . . . . . 1 . . . . . 4 . 1 . . Assimilate 6 | . . . . . 1 . . . . . 4 . 1 . . Fabricators . | . . . . . . . . . . . . . . . . Repair Stations . | . . . . . . . . . . . . . . . . Recycling Units . | . . . . . . . . . . . . . . . . Scanalyzers . | . . . . . . . . . . . . . . . . Garrison Access . | . . . . . . . . . . . . . . . . Data Cores Recovered 4 | . . . 1 . 1 . . . . . 1 . 1 . . Used 1 | . . . . . . . . . . . . . 1 . . Hacking Detections 104 | . 9 2 12 . 14 4 3 . 19 2 21 3 8 5 2 Full Trace Events 30 | . 3 . 5 . 2 1 1 . 3 . 3 3 4 3 2 Feedback Events 3 | . . . . . . 1 1 . . . . . 1 . . Corruption 3 | . . . . . . 1 1 . . . . . 1 . . Feedback Blocked . | . . . . . . . . . . . . . . . . Robot Schematics Acquired 1 | . . . . . . . . . 1 . . . . . . Robots Built . | . . . . . . . . . . . . . . . . Authchips . | . . . . . . . . . . . . . . . . Time . | . . . . . . . . . . . . . . . . Total Robot Build Rating . | . . . . . . . . . . . . . . . . Part Schematics Acquired 24 | . 7 1 2 . 1 . . . 5 . 4 . 4 . . Parts Built 5 | . . . . . . . . . 4 . 1 . . . . Authchips . | . . . . . . . . . . . . . . . . Time 280 | . . . . . . . . . 146 . 134 . . . . Total Part Build Rating 16 | . . . . . . . . . 12 . 4 . . . . Parts Repaired 12 | . . . 2 . 1 . . . 9 . . . . . . Time 454 | . . . 52 . 38 . . . 364 . . . . . . Parts Recycled . | . . . . . . . . . . . . . . . . Recycled Matter . | . . . . . . . . . . . . . . . . Retrieved Matter . | . . . . . . . . . . . . . . . . Retrieved Components . | . . . . . . . . . . . . . . . . Parts Scanalyzed 8 | . . . . . . . . . 1 . 3 . 4 . . Part Schematics Acquired 7 | . . . . . . . . . . . 3 . 4 . . Parts Damaged 2 | . . . . . . . . . . . 1 . 1 . . Bothacking | -11 -10 -10 -9 -9 -8 -8 -7 -7 -7 -7 -7 -7 -6 -6 -6 ------------ Run | Jun Mat Min Mat Min Mat Gar Fac Was Fac Gar Fac Gar Fac Ext Cet Used RIF Installer 4 | . . . . . . 2 . . . 1 . 1 . . . Command Fork 1 | . . . . . . . . . . 1 . . . . . Robot Detection 1 | . . . . . . 1 . . . . . . . . . Structural Interface 1 | . . . . . . . . . . . . 1 . . . Robots Hacked 2 | . . . . . . . 1 . . . . . 1 . . Non-combat 1 | . . . . . . . 1 . . . . . . . . Combat 1 | . . . . . . . . . . . . . 1 . . Robot Hacks Applied 3 | . . . . . . . 2 . . . . . 1 . . parse_system 1 | . . . . . . . . . . . . . 1 . . find_chute 1 | . . . . . . . 1 . . . . . . . . link_fov 1 | . . . . . . . 1 . . . . . . . . Relay Couplers Released 38 | . . . . . . 15 . . 4 19 . . . . . Machine Destruction 34 | . . . . . . 15 . . . 19 . . . . . Programmers 4 | . . . . . . . . . 4 . . . . . . Attached 3 | . . . . . . 3 . . . . . . . . . Fabnet Peak Effective % . | . . . . . . . . . . . . . . . . Robots Rewired 37 | . . . . . . . . . . 9 . 7 . 21 . Allies Hacked . | . . . . . . . . . . . . . . . . Hacks Repelled . | . . . . . . . . . . . . . . . . Allies | -11 -10 -10 -9 -9 -8 -8 -7 -7 -7 -7 -7 -7 -6 -6 -6 -------- Run | Jun Mat Min Mat Min Mat Gar Fac Was Fac Gar Fac Gar Fac Ext Cet Total Allies 65 | . . 3 . . . 2 . 18 . 9 2 7 1 23 . Largest Group 18 | . . 3 . . . 2 1 18 8 6 3 7 6 10 2 Highest-Rated Group 434 | . . 40 . . . 56 25 434 222 202 66 224 185 303 59 Highest-Rated Ally 143 | . . 16 . . . 31 25 35 31 40 26 39 39 143 39 Total Orders 38 | . . . . 18 4 . . . . 3 7 6 . . . STAY 3 | . . . . . . . . . . . 3 . . . . ROAM 7 | . . . . 4 1 . . . . . . 2 . . . FOLLOW 8 | . . . . . . . . . . 1 3 4 . . . GUARD 2 | . . . . . . . . . . 1 1 . . . . AID 1 | . . . . . . . . . . 1 . . . . . EXPLORE 12 | . . . . 10 2 . . . . . . . . . . RETURN 5 | . . . . 4 1 . . . . . . . . . . Ally Attacks 494 | . . 5 . 19 28 17 . 145 60 38 9 . 40 133 . Total Damage 9897 | . . . . 34 162 329 . 4042 814 1095 234 . 595 2592 . Kills 76 | . . . . 2 2 6 . 10 4 11 1 . 6 34 . Allies Corrupted 2 | . . . . . . . . . 1 . . . . 1 . Allies Melted 1 | . . . . . 1 . . . . . . . . . . Intel | -11 -10 -10 -9 -9 -8 -8 -7 -7 -7 -7 -7 -7 -6 -6 -6 ------- Run | Jun Mat Min Mat Min Mat Gar Fac Was Fac Gar Fac Gar Fac Ext Cet Robot Analysis Total 6 | . 1 . 4 . . . . . . . 1 . . . . Derelict Logs Recovered 3 | . . 1 . 2 . . . . . . . . . . . Drone Launches 19 | . . . . 9 10 . . . . . . . . . . Drone Recoveries 17 | . . . . 9 8 . . . . . . . . . . Exploration | -11 -10 -10 -9 -9 -8 -8 -7 -7 -7 -7 -7 -7 -6 -6 -6 ------------- Run | Jun Mat Min Mat Min Mat Gar Fac Was Fac Gar Fac Gar Fac Ext Cet Turns Passed 22132 | 42 885 544 1940 829 962 1225 344 359 2454 1595 3083 2324 724 3777 1045 Spaces Moved 26019 | 42 817 577 1548 553 1611 1863 761 333 3995 1869 5117 2704 1198 2579 452 Core 6 | 5 . . . . . . . . . . . . . . 1 Treads 2100 | . . . . . . . . . . . . . . 1769 331 Legs 120 | . . . . . . . . . . . . . . . 120 Wheels 3532 | 37 817 577 1548 553 . . . . . . . . . . . Hover . | . . . . . . . . . . . . . . . . Flight 20261 | . . . . . 1611 1863 761 333 3995 1869 5117 2704 1198 810 . Fastest Speed 29 | 50 80 80 80 100 29 29 32 32 29 29 29 29 29 29 120 Average Speed 49 | 76 90 87 89 100 30 33 32 32 30 29 30 30 30 119 151 Slowest Speed 700 | 80 100 100 115 115 109 115 34 32 114 32 32 115 112 160 700 Overloaded Moves . | . . . . . . . . . . . . . . . . Propulsion Burnouts . | . . . . . . . . . . . . . . . . Robots Hopped 124 | . . . . . 22 2 3 . 22 . 59 1 3 12 . Cave-ins Triggered 2 | . . . . . . . . . . . . . . . 2 Exploration Rate (%) 74 | 4 99 91 96 99 82 85 20 97 62 73 80 94 31 99 73 Regions Visited 15 Branch Regions 4 Pre-discovered Areas . | . . . . . . . . . . . . . . . . Known Exits Taken 8 | . 1 1 1 1 1 . . . 1 . 1 . . 1 . Unknown Exits Taken 2 | 1 . . . . . . . . . . . . 1 . . Scrap Searched 3 | . . 1 . 2 . . . . . . . . . . . Spaces Dug 6 | . . . . . . . . . . . . 1 . 5 . Terrain Destroyed 141 | . . 1 . . . 78 . . 2 14 1 1 . 20 24 Melee 1 | . . . . . . . . . . . . 1 . . . Projectile 48 | . . 1 . . . . . . 2 . 1 . . 20 24 AOE 92 | . . . . . . 78 . . . 14 . . . . . Terrain Rammed . | . . . . . . . . . . . . . . . . Walls Destroyed . | . . . . . . . . . . . . . . . . Machines Disabled . | . . . . . . . . . . . . . . . . Actions | -11 -10 -10 -9 -9 -8 -8 -7 -7 -7 -7 -7 -7 -6 -6 -6 --------- Run | Jun Mat Min Mat Min Mat Gar Fac Was Fac Gar Fac Gar Fac Ext Cet Total 33336 | 48 901 599 1874 800 1979 2354 850 565 5060 2709 6513 3874 1473 3101 636 Wait 5150 | . 31 5 164 224 269 242 72 219 845 486 1376 762 172 249 34 Move 25758 | 41 816 576 1547 552 1567 1857 755 332 3951 1866 5002 2699 1191 2554 452 Hop 117 | . . . . . 21 1 3 . 21 . 55 1 3 12 . Pick Up 87 | 1 4 1 15 1 7 7 2 1 12 8 6 5 5 8 4 Fast Attach 159 | 6 5 . 4 4 7 4 3 . 25 13 11 22 11 24 20 Attach 63 | . . . 8 . 13 8 2 . 3 6 2 4 6 6 5 Detach 29 | . . . . . 10 3 . . . 1 2 2 2 8 1 Swap 166 | . 8 4 9 . 7 23 5 1 9 34 8 25 8 18 7 Drop 211 | . 6 4 6 3 12 12 2 1 31 21 15 35 15 29 19 Fire 947 | . 29 9 120 16 66 61 3 11 74 154 36 154 3 127 84 Melee 77 | . . . . . . 2 3 . . . . 33 39 . . Ram 3 | . 2 . 1 . . . . . . . . . . . . Kick 9 | . . . . . . . . . . . . . . . 9 Crush 3 | . . . . . . . . . . . . . . 2 1 Escape Stasis 529 | . . . . . . 134 . . 89 120 . 132 18 36 . Rewire 28 | . . . . . . . . . . . . . . 28 . Trap . | . . . . . . . . . . . . . . . . Miscellaneous . | . . . . . . . . . . . . . . . . Route ------- -11/Junkyard -10/Materials (discovered 5 exits: *Mat x3 / *Min x2) -10/Mines (discovered 2 exits: *Mat x2) -9/Materials (discovered 4 exits: *Mat x3 / *Min) -9/Mines (discovered 2 exits: *Mat x2) -8/Materials (discovered 5 exits: *Fac x3 / *Sto / Gar) -8/Garrison (discovered 3 exits: *Fac x3) -7/Factory -7/Waste -7/Factory (discovered 6 exits: *Fac x3 / *Low x2 / Gar) -7/Garrison (discovered 3 exits: *Fac x3) -7/Factory (discovered 7 exits: *Fac x4 / *Low x2 / Gar) -7/Garrison (discovered 3 exits: *Fac x3) -6/Factory (discovered 2 exits: *Fac / *Ext) -6/Extension (discovered 3 exits: *Fac x2 / *Cet) -6/Cetus (discovered 2 exits: *Fac / *Arc) History --------- Turn | Location | Event 15 | -11/Junkyard | Discovered new exit (range 15) 43 | -11/Junkyard | Entered Materials 300 | -10/Materials | Build established: Mutant 339 | -10/Materials | Discovered new exit (range 15) 359 | -10/Materials | Identified exit to Materials 424 | -10/Materials | Discovered new exit (range 5) 426 | -10/Materials | Identified exit to Mines 557 | -10/Materials | Discovered exit to Mines (range 16) 668 | -10/Materials | Discovered exit to Materials (range 14) 804 | -10/Materials | Discovered exit to Materials (range 4) 928 | -10/Materials | Entered Mines 982 | -10/Mines | Assembled infested the area 986 | -10/Mines | Assisted by bots powering up and referring to "LRC-V3" 987 | -10/Mines | Assisted by a Guerilla fighting off Assembled 1048 | -10/Mines | Learned location of 1 exit from Materials 1178 | -10/Mines | Found a hidden stash of uninstalled traps 1195 | -10/Mines | Discovered exit to Materials (range 6) 1215 | -10/Mines | Received a Rocket Launcher from a helpful Derelict 1405 | -10/Mines | Discovered exit to Materials (range 11) 1472 | -10/Mines | Entered Materials 1472 | -9/Materials | Evolved 2 slots: Utility x2 1473 | -9/Materials | Identified exit to Mines 1493 | -9/Materials | Build established: Scavenger-Mutant 1829 | -9/Materials | Destroyed 10 combat bots 1872 | -9/Materials | First assault squad dispatched 1946 | -9/Materials | Lost 3 parts (1p2n) 1961 | -9/Materials | Destroyed 7 combat bots 2116 | -9/Materials | Discovered new exit (range 16) 2199 | -9/Materials | Build established: Mutant 2607 | -9/Materials | Discovered new exit (range 8) 2664 | -9/Materials | Repaired Core Shielding 2725 | -9/Materials | Repaired Wheel 2947 | -9/Materials | Discovered new exit (range 10) 3154 | -9/Materials | Core integrity fell below 50% 3190 | -9/Materials | Sterilization system engaged 3190 | -9/Materials | Non-combat units ordered to evacuate 3290 | -9/Materials | Combat units ordered to evacuate 3369 | -9/Materials | Identified exit to Materials 3412 | -9/Materials | Entered Mines 3436 | -9/Mines | Found a damaged Exp. Sensor Array with a note attached 3439 | -9/Mines | Found Prototype Device 3439 | -9/Mines | Identified Exp. Sensor Array 3618 | -9/Mines | Found the Drone Emporium 3628 | -9/Mines | Found Prototype Device 3628 | -9/Mines | Identified Thief Drone Bay 3644 | -9/Mines | Discovered exit to Materials (range 29) 3656 | -9/Mines | Discovered exit to Materials (range 35) 3861 | -9/Mines | Learned Materials non-interactive machine intel 3866 | -9/Mines | Learned Materials terminal intel 3980 | -9/Mines | Met a Derelict shopkeep closing up shop 4241 | -9/Mines | Entered Materials 4241 | -8/Materials | Evolved 2 slots: Propulsion x1, Utility x1 4242 | -8/Materials | Loaded intel: 34 non-interactive machine locations 4243 | -8/Materials | Loaded intel: 12 terminal locations 4351 | -8/Materials | Garrison activated, responded to threat 4410 | -8/Materials | Discovered new exit (range 5) 4411 | -8/Materials | Identified exit to Factory 4554 | -8/Materials | Build established: Sprinter 4587 | -8/Materials | Discovered new exit (range 9) 4610 | -8/Materials | Identified exit to Storage 4700 | -8/Materials | Repaired Cesium-ion Thruster 4747 | -8/Materials | Discovered exit to Factory (range 16) 5082 | -8/Materials | Discovered exit to Factory (range 16) 5203 | -8/Materials | Identified exit to Garrison 5203 | -8/Materials | Entered Garrison 5348 | -8/Garrison | Discovered exit to Factory (range 13) 5388 | -8/Garrison | Triggered checkpoint 5389 | -8/Garrison | Garrison Relay disabled 5406 | -8/Garrison | Triggered checkpoint 5416 | -8/Garrison | Triggered checkpoint 5432 | -8/Garrison | Triggered checkpoint 5481 | -8/Garrison | Destroyed 11 combat bots 5509 | -8/Garrison | Learned Factory security intel 5515 | -8/Garrison | Installed Relay Interface Framework 5521 | -8/Garrison | Discovered exit to Factory (range 11) 5534 | -8/Garrison | Triggered checkpoint 5570 | -8/Garrison | Rescued a captive Derelict 5571 | -8/Garrison | Rescued a captive Derelict 5575 | -8/Garrison | Garrison Relay disabled 5680 | -8/Garrison | Discovered exit to Factory (range 10) 5690 | -8/Garrison | Triggered checkpoint 5851 | -8/Garrison | Garrison Relay disabled 5894 | -8/Garrison | Triggered checkpoint 5956 | -8/Garrison | Garrison Relay disabled 5971 | -8/Garrison | Expanded RIF knowledge: Robot Detection 6054 | -8/Garrison | Triggered checkpoint 6178 | -8/Garrison | Phase Generator disabled 6231 | -8/Garrison | Build established: Scavenger-Sprinter 6428 | -8/Garrison | Entered Factory 6428 | -7/Factory | Accompanied by 1 ally 6428 | -7/Factory | Evolved 2 slots: Utility x2 6608 | -7/Factory | Discovered new exit (range 10) 6611 | -7/Factory | Identified exit to Lower Caves 6772 | -7/Factory | Sucked down chute 6772 | -7/Factory | Entered Waste 6774 | -7/Waste | Spotted C-40 Crusher 6784 | -7/Waste | Spotted C-40 Crusher 6834 | -7/Waste | Warlord forces began an assault 6836 | -7/Waste | Allies destroyed C-40 Crusher 6862 | -7/Waste | Spotted C-40 Crusher 6864 | -7/Waste | Allies destroyed C-40 Crusher 6868 | -7/Waste | Allies destroyed C-40 Crusher 6888 | -7/Waste | Spotted C-40 Crusher 6910 | -7/Waste | Destroyed C-40 Crusher 6917 | -7/Waste | Spotted C-40 Crusher 6940 | -7/Waste | Allies destroyed C-40 Crusher 6949 | -7/Waste | Discovered new exit (range 15) 6967 | -7/Waste | Identified exit to Factory 7131 | -7/Waste | Entered Factory 7131 | -7/Factory | Accompanied by 8 allies 7321 | -7/Factory | Discovered exit to Lower Caves (range 15) 7508 | -7/Factory | Repaired Cesium-ion Thruster 7631 | -7/Factory | Fabricated Adv. Weight Redist. System (x2) 7790 | -7/Factory | Build established: Hacker-Sprinter 7841 | -7/Factory | Discovered new exit (range 13) 7846 | -7/Factory | Central database locked down 7940 | -7/Factory | Repaired Minigun 8265 | -7/Factory | Discovered new exit (range 15) 8269 | -7/Factory | Discovered exit to Lower Caves (range 12) 8269 | -7/Factory | Identified exit to Factory 8320 | -7/Factory | Discovered exit to Factory (range 16) 8366 | -7/Factory | Repaired Cesium-ion Thruster 8547 | -7/Factory | Cargo convoy interrupted 8624 | -7/Factory | Repaired Gauss Rifle? 8941 | -7/Factory | Repaired Imp. Cesium-ion Thruster 8981 | -7/Factory | Repaired Adv. Weight Redist. System 9026 | -7/Factory | Repaired Imp. Deuterium Engine 9065 | -7/Factory | Repaired Cesium-ion Thruster? 9212 | -7/Factory | Repaired VTOL Module 9297 | -7/Factory | Fabricated Cesium-ion Thruster? 9585 | -7/Factory | Identified exit to Garrison 9585 | -7/Factory | Entered Garrison 9594 | -7/Garrison | Triggered checkpoint 9962 | -7/Garrison | Lost 4 parts (1n2u1w) 10128 | -7/Garrison | Triggered checkpoint 10154 | -7/Garrison | Discovered new exit (range 12) 10158 | -7/Garrison | Identified exit to Factory 10196 | -7/Garrison | Triggered checkpoint 10244 | -7/Garrison | Build established: Scavenger-Sprinter 10312 | -7/Garrison | Discovered exit to Factory (range 15) 10416 | -7/Garrison | Garrison Relay disabled 10424 | -7/Garrison | P-60 Hacker assimilated allied Commando 4a 10427 | -7/Garrison | Garrison Relay disabled 10432 | -7/Garrison | Garrison Relay disabled 10432 | -7/Garrison | Garrison Relay disabled 10558 | -7/Garrison | Triggered checkpoint 10609 | -7/Garrison | Discovered exit to Factory (range 13) 10622 | -7/Garrison | Triggered checkpoint 10688 | -7/Garrison | Triggered checkpoint 10758 | -7/Garrison | Triggered checkpoint 10764 | -7/Garrison | Triggered checkpoint 10804 | -7/Garrison | Expanded RIF knowledge: Command Fork 11180 | -7/Garrison | Entered Factory 11180 | -7/Factory | Accompanied by 3 allies 11198 | -7/Factory | Discovered exit to Lower Caves (range 7) 12712 | -7/Factory | Fabricated Enh. Nuclear Core? 13441 | -7/Factory | Build established: Hacker-Sprinter 13827 | -7/Factory | Discovered exit to Lower Caves (range 16) 14078 | -7/Factory | Core integrity fell below 50% 14263 | -7/Factory | Identified exit to Garrison 14263 | -7/Factory | Entered Garrison 14342 | -7/Garrison | Triggered checkpoint 14394 | -7/Garrison | Triggered checkpoint 14448 | -7/Garrison | Triggered checkpoint 14514 | -7/Garrison | Discovered exit to Factory (range 13) 14540 | -7/Garrison | Triggered checkpoint 14852 | -7/Garrison | Build established: Scavenger-Sprinter 14914 | -7/Garrison | Destroyed 10 combat bots 15062 | -7/Garrison | Core integrity fell below 20% 15385 | -7/Garrison | Discovered exit to Factory (range 9) 15392 | -7/Garrison | Triggered checkpoint 15514 | -7/Garrison | Expanded RIF knowledge: Structural Interface 15649 | -7/Garrison | Discovered exit to Factory (range 13) 16587 | -7/Garrison | Entered Factory 16587 | -6/Factory | Accompanied by 6 allies 16587 | -6/Factory | Evolved 2 slots: Utility x1, Weapon x1 16589 | -6/Factory | Identified exit to DSF 16794 | -6/Factory | Garrison activated, responded to threat 16871 | -6/Factory | Discovered new exit (range 10) 16937 | -6/Factory | First assault squad dispatched 17045 | -6/Factory | Discovered new exit (range 15) 17311 | -6/Factory | Entered Extension 17338 | -6/Extension | Spotted B-75 Beast 17338 | -6/Extension | Spotted B-75 Beast 17658 | -6/Extension | Energy Cycler disabled 17659 | -6/Extension | Rescued a captive Derelict 17771 | -6/Extension | Discovered new exit (range 19) 17782 | -6/Extension | Rescued A7 17793 | -6/Extension | Extracted ID and sensor layout for unrecognized location from A7's data core 17836 | -6/Extension | Lost 6 parts (3n2u1w) 18242 | -6/Extension | Build established: Scavenger-Skirmisher 18338 | -6/Extension | Discovered new exit (range 22) 18339 | -6/Extension | Discovered new exit (range 21) 18859 | -6/Extension | Build established: Scavenger-Mutant 19633 | -6/Extension | Identified exit to Cetus 19637 | -6/Extension | Identified exit to Factory 19723 | -6/Extension | Disrupted transfer network 20076 | -6/Extension | Build established: Scavenger-Tank 20529 | -6/Extension | Build established: Scavenger-Mutant 20888 | -6/Extension | Build established: Scavenger-Gunner 21088 | -6/Extension | Entered Cetus 21088 | -6/Cetus | Accompanied by 2 allies 21103 | -6/Cetus | Spotted Cetus Guard 21108 | -6/Cetus | Destroyed Cetus Guard 21108 | -6/Cetus | Spotted Cetus Guard 21109 | -6/Cetus | Spotted Cetus Guard 21117 | -6/Cetus | Destroyed Cetus Guard 21118 | -6/Cetus | Spotted Cetus Guard 21130 | -6/Cetus | Destroyed Cetus Guard 21140 | -6/Cetus | Destroyed Cetus Guard 21307 | -6/Cetus | Discovered exit to Factory (range 22) 21526 | -6/Cetus | Discovered new exit (range 22) 21565 | -6/Cetus | Identified exit to Archives 21870 | -6/Cetus | Lost 7 parts (3n1u3w) 22044 | -6/Cetus | Cetus Manufacturing Module disabled 22066 | -6/Cetus | Crushed by falling debris 22066 | -6/Cetus | Core integrity fell below 50% 22082 | -6/Cetus | Crushed by falling debris 22096 | -6/Cetus | Core integrity fell below 20% 22133 | -6/Cetus | Destroyed by G-50 Soldier with Heavy Laser Last Messages --------------- Acquired 85 matter. Overheating: Matter decay (-96). Acquired 1 matter. Kicked G-50 Soldier. Kicked G-50 Soldier out of the way. Acquired Adv. Heat Sink. Centrium Medium Armor Plating destroyed. Fission Core destroyed. G-50 Soldier destroyed. System corrupted: Matter fused (-10). Flexi-carbon Leg destroyed. Adv. Variable Charge Gun destroyed. Carbon-fiber Leg destroyed. Acquired Hvy. Laser. G-50 Soldier suffers critical hit (Burn). Adv. Heat Sink melted. Hvy. Laser melted. G-50 Soldier destroyed. Critical hit (Burn: +37). [Achievement: This Is Interesting...] Map ----- +----------------------------------------------------+ | ?????????????# #???????????????????????????????? | | ????????????## #???????????????????????????????? | | ????????????#" #???????????????????????????????? | | ????????????#" #???????????????????????????????? | | ????????????#" #???????????????????????????????? | | ????????????##*= #???????????????????????????????? | | ?????????????# #???????????????????????????????? | | ?????????????# ==#???????????????????????????????? | | ?????????????#" "#???????????????????????????????? | | ?????????????# "=#???????????????????????????????? | | ?????????????# #???????????????????????????????? | | ?????????????# #???????????????????????????????? | | ?????????????# #???????????????????????????????? | | ?????????????# #???????????????????????????????? | | ?????????????# #??????????#################????? | | ?????????????# #??????????#""""" """ """""##???? | | ?????????????# #??????????# " """"""" " #""??? | | ?????????????# #??????????#"""""""""""""""#"#### | | ?????????????# #??????????#""""" """ """""#""""" | | ?????????????# #??????????#""""""" """""""#" " | | ?????????????# #??????????#""" " " """#T " | | ???????????### ############" " """ "#" " | | ############;; ;;#;;#! =%#!=% | | !/ %%% ! *%=%=%=%% % % | | = *! !! !*=[g=|%% == | | =* !@=%%%%%% % % | | ####"##""#####"#####;;! =* %#"%!!%! * | | ???#######???###???###;####*#"%!"[ %*""" """"#T | | ?????????????????????# #??########++############"" | | ?????????????????????###????#" ! %%!""#????????? | | ????????????????????????????###" %! % ""#????????? | | ????????????????????????????#" " "#????????? | | ????????????????????????????###" ""#????????? | | ????????????????????????????#" !% ###????????? | | ????????????????????????????#" = """"#????????? | | ????????????????????????????#" T"""#????????? | | ????????????????????????????# """"#????????? | | ????????????????????????????### "###????????? | | ????????????????????????????# """"#????????? | | ????????????????????????????#" " T"""#????????? | | ????????????????????????????#" """"#????????? | | ????????????????????????????#" " " #"###????????? | | ????????????????????????????# #"""?????????? | | ????????????????????????????#""" "" #"""#????????? | | ????????????????????????????#############????????? | | ?????????????????????????????????????????????????? | | ?????????????????????????????????????????????????? | | ?????????????????????????????????????????????????? | | ?????????????????????????????????????????????????? | | ?????????????????????????????????????????????????? | +----------------------------------------------------+ Best States ------------- Heat Dissipation 75 Energy Generation 25 Energy Capacity 700 Matter Stores 600 Matter Capacity 600 Sight Range 22 Robot Scan Range 15 Terrain Scan Density 10 Jamming Range 12 Additional Mass Support 12 Armor Coverage 300 Resistance: KI 20 Resistance: TH 20 Resistance: EX 20 Resistance: EM 20 Resistance: I 20 Resistance: S 20 Resistance: P 20 Core Shielding 20 Weapon Cycling 15 Phase Shifting 10 Evasion (%) 74 Targeting Accuracy 8 Melee Accuracy 6 Armor Integrity Analysis 30 Recoil Reduction 3 Offensive Hacking 10 Defensive Hacking 10 Relay Coupler Types 3 Relay Coupler Value 73 Item Schematics ----------------- Lgt. Cannon | -10/Materials | Hacked Transport Network Coupler | -10/Materials | Hacked Med. Laser | -10/Materials | Hacked Lgt. Armor Plating | -10/Materials | Hacked Lgt. Assault Rifle | -10/Materials | Hacked Power Shielding | -10/Materials | Hacked Ion Engine | -10/Materials | Hacked Targeting Computer | -10/Mines | Hacked Imp. Light Cannon | -9/Materials | Hacked Weight Redist. System | -9/Materials | Hacked Adv. Weight Redist. System | -8/Materials | Hacked Enh. Autogun | -7/Factory | Hacked Adv. Targeting Computer | -7/Factory | Hacked Cesium-ion Thruster | -7/Factory | Hacked Xenon Bombardment Thruster | -7/Factory | Hacked Propulsion Shielding | -7/Factory | Hacked Enh. Nuclear Core | -7/Factory | Scanalyzed Imp. Cesium-ion Thruster | -7/Factory | Scanalyzed Imp. VTOL Module | -7/Factory | Scanalyzed Imp. Transmission Jammer | -7/Factory | Hacked Enh. Optical Array | -6/Factory | Scanalyzed Lgt. Fission Core | -6/Factory | Scanalyzed Gauss Cannon | -6/Factory | Scanalyzed Imp. Reaction Control System | -6/Factory | Scanalyzed Robot Schematics ------------------ T-07 Excavator | -7/Factory | Hacked Fabricated ------------ Adv. Weight Redist. System | x2 | -7/Factory Cesium-ion Thruster | x2 | -7/Factory Enh. Nuclear Core | x1 | -7/Factory Alien Tech Used ----------------- None Achievements -------------- Cya! Deadly Force Generalissimo Infiltrator Prison Break Slippery One This Is Interesting... Challenges ------------ None Game ------ Seed SupersonicMatterRay Manual? 0 Play Time 06:05:30 Cumulative 32.6 hours Start 2023.09.09 @ 23:29:01 End 2023.09.12 @ 00:09:47 Sessions 9 Manual Loads 0 Difficulty Adventurer Special Mode None Game No. 9 Rogue 0 Adventurer 9 Explorer 0 Win Type - Total 0 Types 0/0/0/0/0/0/0/0/0 Lore% 25 Gallery% 28 Achievement% 28 Wizard Run 0 Options --------- ASCII 0 Keyboard 0 Movement Numpad Keybinds 0 Fullscreen 1 Font 24/Smallcaps Map View 76x50 Tactical HUD 0 Map Filters NONE Filters NONE Steam X RUN: 17c8e099-fda0-4954-80bb-5a2b4f4d39aa